[Event "EIRCC 2019"]
[Site "Tallinn"]
[Date "2019.12.06"]
[Round "12.12"]
[White "Kozak, Adam"]
[Black "Lintchevski, Daniil"]
[Result "1/2-1/2"]
[ECO "A06"]
[WhiteElo "2240"]
[BlackElo "2515"]
[Annotator "ChessBase"]
[PlyCount "109"]
[EventDate "2019.12.05"]
[EventType "swiss"]
[EventCountry "EST"]
[SourceTitle "playchess.com"]
[Source "ChessBase"]
[SourceQuality "1"]
[TimeControl "900+10"]

1. Nf3 {[%emt 0:00:00]} d5 {[%emt 0:00:00]} 2. g3 {[%emt 0:00:00]} Bg4 {[%emt 0:00:07]} 3. Bg2 {[%emt 0:00:00]} Nd7 {[%emt 0:00:19]} 4. h3 {[%emt 0:00:14]} Bh5 {[%emt 0:00:06]} 5. d4 {[%emt 0:00:01]} c6 {[%emt 0:00:24]} 6. O-O {[%emt 0:00:05]} e6 {[%emt 0:00:04]} 7. c4 {[%emt 0:00:01]} Bxf3 {[%emt 0:01:26]} 8. Bxf3 {[%emt 0:00:07]} Ngf6 {[%emt 0:00:02]} 9. b3 {[%emt 0:01:43]} Be7 {[%emt 0:00:12]} 10. Bb2 {[%emt 0:00:04]} O-O {[%emt 0:00:03]} 11. Nc3 {[%emt 0:00:26]} Re8 {[%emt 0:00:11]} 12. Bg2 {[%emt 0:00:16]} Qa5 {[%emt 0:00:58]} 13. e3 {[%emt 0:01:54]} Ba3 {[%emt 0:00:46]} 14. Qc1 {[%emt 0:00:03]} Bxb2 {[%emt 0:00:23]} 15. Qxb2 {[%emt 0:00:03]} Qb4 {[%emt 0:00:09]} 16. a3 {[%emt 0:00:13]} Qe7 {[%emt 0:00:02]} 17. Rfd1 {[%emt 0:00:57]} a5 {[%emt 0:00:08]} 18. Rac1 {[%emt 0:02:55]} h6 {[%emt 0:00:10]} 19. Ne2 {[%emt 0:00:41]} Reb8 {[%emt 0:01:08]} 20. Nf4 {[%emt 0:00:23]} a4 {[%emt 0:00:02]} 21. b4 {[%emt 0:00:32]} Nb6 {[%emt 0:00:22]} 22. Bf1 {[%emt 0:00:57]} dxc4 {[%emt 0:00:34]} 23. Bxc4 {[%emt 0:00:05]} Nxc4 {[%emt 0:00:05]} 24. Rxc4 {[%emt 0:00:04]} Ne4 {[%emt 0:00:19]} 25. Rcc1 {[%emt 0:00:40]} Nd6 {[%emt 0:00:13]} 26. Ne2 {[%emt 0:00:13]} Rd8 {[%emt 0:00:43]} 27. Rc5 {[%emt 0:00:49]} Ne4 {[%emt 0:00:21]} 28. Rcc1 {[%emt 0:00:02]} Qg5 {[%emt 0:01:12]} 29. Qc2 {[%emt 0:01:14]} Qf5 {[%emt 0:01:20]} 30. Nf4 {[%emt 0:00:01]} Nd6 {[%emt 0:00:26]} 31. Qxf5 {[%emt 0:00:29]} exf5 {[%emt 0:00:02]} 32. Rd3 {[%emt 0:00:39]} Nb5 {[%emt 0:00:27]} 33. Rc5 {[%emt 0:00:44]} g6 {[%emt 0:00:01]} 34. Kg2 {[%emt 0:00:30]} Rd6 {[%emt 0:00:26]} 35. Ne2 {[%emt 0:00:42]} h5 {[%emt 0:00:33]} 36. h4 {[%emt 0:00:03]} Kg7 {[%emt 0:00:33]} 37. Ng1 {[%emt 0:00:03]} Rad8 {[%emt 0:00:30]} 38. Nf3 {[%emt 0:00:07]} Rd5 {[%emt 0:00:34]} 39. Rc1 {[%emt 0:00:08]} Nd6 {[%emt 0:00:43]} 40. Nd2 {[%emt 0:00:08]} Kf8 {[%emt 0:00:34]} 41. Nc4 {[%emt 0:00:13]} Nxc4 {[%emt 0:00:06]} 42. Rxc4 {[%emt 0:00:01]} Ke7 {[%emt 0:00:05]} 43. Kf3 {[%emt 0:00:18]} R8d6 {[%emt 0:00:08]} 44. Rdc3 {[%emt 0:00:02]} Kd7 {[%emt 0:00:12]} 45. Rc5 {[%emt 0:00:31]} b6 {[%emt 0:00:16]} 46. R5c4 {[%emt 0:00:03]} Rb5 {[%emt 0:00:17]} 47. Rc2 {[%emt 0:00:08]} Re6 {[%emt 0:00:05]} 48. Rc1 {[%emt 0:00:39]} Kc7 {[%emt 0:00:09]} 49. Ke2 {[%emt 0:00:05]} Kd7 {[%emt 0:00:09]} 50. Kd3 {[%emt 0:00:02]} Rd6 {[%emt 0:00:12]} 51. R4c3 {[%emt 0:00:47]} Re6 {[%emt 0:00:06]} 52. R3c2 {[%emt 0:01:12]} Rd5 {[%emt 0:00:10]} 53. Rc4 {[%emt 0:00:17]} Rb5 {[%emt 0:00:01]} 54. R1c2 {[%emt 0:00:32]} Rd6 {[%emt 0:00:14]} 55. R4c3 {[%emt 0:00:41]} 1/2-1/2

[Event "EIRCC 2019"]
[Site "Tallinn"]
[Date "2019.12.06"]
[Round "12.13"]
[White "Dordzhieva, Dinara"]
[Black "Kanep, Meelis"]
[Result "1-0"]
[ECO "A05"]
[WhiteElo "2310"]
[BlackElo "2466"]
[Annotator "ChessBase"]
[PlyCount "99"]
[EventDate "2019.12.05"]
[EventType "swiss"]
[EventCountry "EST"]
[SourceTitle "playchess.com"]
[Source "ChessBase"]
[SourceQuality "1"]
[TimeControl "900+10"]

1. Nf3 {[%emt 0:00:00]} Nf6 {[%emt 0:00:00]} 2. c4 {[%emt 0:00:00]} d6 {[%emt 0:00:16]} 3. d4 {[%emt 0:00:00]} g6 {[%emt 0:00:07]} 4. g3 {[%emt 0:00:09]} Bg7 {[%emt 0:00:04]} 5. Bg2 {[%emt 0:00:02]} O-O {[%emt 0:00:05]} 6. Nc3 {[%emt 0:00:02]} c6 {[%emt 0:00:03]} 7. O-O {[%emt 0:00:05]} Qb6 {[%emt 0:00:02]} 8. e3 {[%emt 0:00:14]} Re8 {[%emt 0:00:27]} 9. b3 {[%emt 0:01:22]} e5 {[%emt 0:00:03]} 10. dxe5 {[%emt 0:00:14]} dxe5 {[%emt 0:00:03]} 11. Bb2 {[%emt 0:00:14]} Bf5 {[%emt 0:00:29]} 12. Ng5 {[%emt 0:00:22]} e4 {[%emt 0:01:28]} 13. Qd6 {[%emt 0:05:13]} h6 {[%emt 0:02:16]} 14. Na4 {[%emt 0:01:31]} Qd8 {[%emt 0:00:09]} 15. Qxd8 {[%emt 0:02:24]} Rxd8 {[%emt 0:00:02]} 16. Nh3 {[%emt 0:00:01]} Na6 {[%emt 0:00:28]} 17. Nf4 {[%emt 0:00:20]} b5 {[%emt 0:01:10]} 18. cxb5 {[%emt 0:00:57]} cxb5 {[%emt 0:00:02]} 19. Nc3 {[%emt 0:00:01]} Rd2 {[%emt 0:00:20]} 20. Rab1 {[%emt 0:00:29]} g5 {[%emt 0:00:30]} 21. Nh3 {[%emt 0:00:36]} b4 {[%emt 0:03:12]} 22. Nb5 {[%emt 0:01:01]} Nc5 {[%emt 0:02:19]} 23. Rfd1 {[%emt 0:01:01]} Rxd1+ {[%emt 0:00:11]} 24. Rxd1 {[%emt 0:00:01]} Nd3 {[%emt 0:00:02]} 25. Bd4 {[%emt 0:00:09]} Rc8 {[%emt 0:01:06]} 26. Nd6 {[%emt 0:00:07]} Bxh3 {[%emt 0:00:03]} 27. Bxh3 {[%emt 0:01:14]} Rc2 {[%emt 0:00:14]} 28. Rf1 {[%emt 0:00:31]} Rxa2 {[%emt 0:01:06]} 29. Bf5 {[%emt 0:00:49]} Rd2 {[%emt 0:00:50]} 30. Bxf6 {[%emt 0:00:13]} Nc5 {[%emt 0:01:00]} 31. Bxg7 {[%emt 0:00:35]} Rxd6 {[%emt 0:00:07]} 32. Bd4 {[%emt 0:00:04]} Nxb3 {[%emt 0:00:05]} 33. Bxa7 {[%emt 0:00:09]} Nd2 {[%emt 0:00:18]} 34. Rc1 {[%emt 0:00:15]} b3 {[%emt 0:00:59]} 35. Bd4 {[%emt 0:00:03]} Nf3+ {[%emt 0:01:01]} 36. Kg2 {[%emt 0:00:02]} Nxd4 {[%emt 0:00:01]} 37. exd4 {[%emt 0:00:02]} Rxd4 {[%emt 0:00:03]} 38. Rc8+ {[%emt 0:00:16]} Kg7 {[%emt 0:00:01]} 39. Rb8 {[%emt 0:00:01]} Kf6 {[%emt 0:00:16]} 40. g4 {[%emt 0:00:02]} h5 {[%emt 0:00:10]} 41. h3 {[%emt 0:00:04]} hxg4 {[%emt 0:00:17]} 42. hxg4 {[%emt 0:00:01]} Ke5 {[%emt 0:00:15]} 43. Rxb3 {[%emt 0:00:02]} Kf4 {[%emt 0:00:04]} 44. Rb7 {[%emt 0:00:03]} Rd2 {[%emt 0:00:21]} 45. Rb4 {[%emt 0:00:09]} Re2 {[%emt 0:00:05]} 46. Rc4 {[%emt 0:00:34]} Re1 {[%emt 0:00:07]} 47. Ra4 {[%emt 0:00:03]} f6 {[%emt 0:00:10]} 48. Rb4 {[%emt 0:00:31]} Re2 {[%emt 0:00:05]} 49. Rc4 {[%emt 0:00:00]} Rxf2+ {[%emt 0:00:07]} 50. Kxf2 {[%emt 0:00:04]} 1-0

[Event "EIRCC 2019"]
[Site "Tallinn"]
[Date "2019.12.06"]
[Round "12.14"]
[White "Usmanov, Vasily"]
[Black "Lazavik, Denis"]
[Result "1-0"]
[ECO "D14"]
[WhiteElo "2428"]
[BlackElo "2201"]
[Annotator "NA"]
[PlyCount "87"]
[EventDate "2019.12.05"]
[EventType "swiss"]
[EventCountry "EST"]
[SourceTitle "playchess.com"]
[Source "ChessBase"]
[SourceQuality "1"]
[TimeControl "900+10"]

1. Nf3 {[%emt 0:00:00]} Nf6 {[%emt 0:00:00]} 2. c4 {[%emt 0:00:00]} c6 {[%emt 0:00:00]} 3. d4 {[%emt 0:00:00]} d5 {[%emt 0:00:00]} 4. cxd5 {[%emt 0:00:00]} cxd5 {[%emt 0:00:04]} 5. Nc3 {[%emt 0:00:00]} Nc6 {[%emt 0:00:02]} 6. Bf4 {[%emt 0:00:00]} Bf5 {[%emt 0:00:03]} 7. e3 {[%emt 0:00:03]} e6 {[%emt 0:00:02]} 8. Qb3 {[%emt 0:00:08]} Bb4 {[%emt 0:00:03]} 9. Ne5 {[%emt 0:00:04]} Bxc3+ {[%emt 0:00:47]} 10. bxc3 {[%emt 0:00:13]} O-O {[%emt 0:00:10]} 11. Be2 {[%emt 0:01:41]} Rc8 {[%emt 0:00:08]} 12. Nxc6 {[%emt 0:00:47]} Rxc6 {[%emt 0:00:29]} 13. O-O {[%emt 0:00:33]} Qc8 {[%emt 0:02:06]} 14. Rfc1 {[%emt 0:01:45]} Ne4 {[%emt 0:00:12]} 15. c4 {[%emt 0:01:12]} Nd2 {[%emt 0:00:17]} 16. Qa3 {[%emt 0:01:14]} Nxc4 {[%emt 0:01:38]} 17. Qxa7 {[%emt 0:00:31]} b5 {[%emt 0:01:08]} 18. Qe7 {[%emt 0:01:28]} Qa6 {[%emt 0:01:04]} 19. h4 {[%emt 0:00:33]} h6 {[%emt 0:00:52]} 20. g4 {[%emt 0:00:12]} Bh7 {[%emt 0:00:04]} 21. g5 {[%emt 0:00:04]} hxg5 {[%emt 0:00:07]} 22. hxg5 {[%emt 0:00:32]} Rcc8 {[%emt 0:02:53]} 23. Kg2 {[%emt 0:00:13]} Rce8 {[%emt 0:00:14]} 24. Qb4 {[%emt 0:00:20]} f6 {[%emt 0:00:25]} 25. a4 {[%emt 0:04:25]} e5 {[%emt 0:00:53]} 26. axb5 {[%emt 0:00:15]} Qe6 {[%emt 0:00:01]} 27. Ra6 {[%emt 0:00:19]} Qf5 {[%emt 0:00:18]} 28. Bg3 {[%emt 0:01:53]} exd4 {[%emt 0:01:07]} 29. Bxc4 {[%emt 0:00:36]} dxe3 {[%emt 0:00:04]} 30. g6 {[%emt 0:00:16]} Bxg6 {[%emt 0:00:15]} 31. Bb3 {[%emt 0:00:15]} Bh5 {[%emt 0:01:06]} 32. Qf4 {[%emt 0:00:10]} Qd3 {[%emt 0:00:00]} 33. Rh1 {[%emt 0:00:25]} e2 {[%emt 0:01:04]} 34. Rxh5 {[%emt 0:00:20]} e1=Q {[%emt 0:00:46]} 35. Bxd5+ {[%emt 0:00:01]} Rf7 {[%emt 0:00:01]} 36. Kh2 {[%emt 0:00:19]} Qed1 {[%emt 0:00:59]} 37. Qh4 {[%emt 0:00:08]} Qxg3+ {[%emt 0:01:04]} 38. Kxg3 {[%emt 0:00:08]} Qg1+ {[%emt 0:00:40]} 39. Kh3 {[%emt 0:00:03]} Qf1+ {[%emt 0:00:08]} 40. Kh2 {[%emt 0:00:01]} Kf8 {[%emt 0:00:12]} 41. Qb4+ {[%emt 0:00:09]} Kg8 {[%emt 0:00:02]} 42. Bxf7+ {[%emt 0:00:22]} Kxf7 {[%emt 0:00:01]} 43. Ra7+ {[%emt 0:00:01]} Kg8 {[%emt 0:00:10]} 44. Qb3+ {[%emt 0:00:05]} 1-0

[Event "EIRCC 2019"]
[Site "Tallinn"]
[Date "2019.12.06"]
[Round "12.16"]
[White "Sanal, Vahap"]
[Black "Van Foreest, Lucas"]
[Result "1-0"]
[ECO "B00"]
[WhiteElo "2597"]
[BlackElo "2399"]
[Annotator "RC"]
[PlyCount "87"]
[EventDate "2019.12.05"]
[EventType "swiss"]
[EventCountry "EST"]
[SourceTitle "playchess.com"]
[Source "ChessBase"]
[SourceQuality "1"]
[TimeControl "900+10"]

1. e4 {[%emt 0:00:00]} b6 {[%emt 0:00:00]} 2. d4 {[%emt 0:00:00]} Bb7 {[%emt 0:00:00]} 3. Bd3 {[%emt 0:00:00]} g6 {[%emt 0:00:00]} 4. Bg5 {[%emt 0:00:23]} Bg7 {[%emt 0:00:00]} 5. c3 {[%emt 0:00:15]} d6 {[%emt 0:00:01]} 6. Nd2 {[%emt 0:00:05]} Nd7 {[%emt 0:00:03]} 7. f4 {[%emt 0:00:08]} f5 {[%emt 0:00:06]} 8. Ngf3 {[%emt 0:00:40]} fxe4 {[%emt 0:00:06]} 9. Nxe4 {[%emt 0:00:14]} Ngf6 {[%emt 0:00:03]} 10. Qe2 {[%emt 0:00:22]} O-O {[%emt 0:00:12]} 11. O-O {[%emt 0:00:06]} c5 {[%emt 0:00:13]} 12. Bxf6 {[%emt 0:00:25]} Nxf6 {[%emt 0:00:21]} 13. Neg5 {[%emt 0:00:03]} Qd7 {[%emt 0:02:11]} 14. Bc4+ {[%emt 0:00:13]} Bd5 {[%emt 0:01:25]} 15. Ne6 {[%emt 0:00:27]} Qxe6 {[%emt 0:00:32]} 16. Qxe6+ {[%emt 0:00:01]} Bxe6 {[%emt 0:00:02]} 17. Bxe6+ {[%emt 0:00:02]} Kh8 {[%emt 0:00:00]} 18. Rae1 {[%emt 0:00:01]} Bh6 {[%emt 0:01:01]} 19. g3 {[%emt 0:00:04]} Rab8 {[%emt 0:00:18]} 20. Bb3 {[%emt 0:00:11]} Rb7 {[%emt 0:00:03]} 21. Ng5 {[%emt 0:00:02]} d5 {[%emt 0:00:35]} 22. Ne6 {[%emt 0:00:08]} Rc8 {[%emt 0:00:03]} 23. Re5 {[%emt 0:00:16]} c4 {[%emt 0:00:45]} 24. Bd1 {[%emt 0:00:15]} Rd7 {[%emt 0:00:12]} 25. Ba4 {[%emt 0:00:33]} Rd6 {[%emt 0:00:17]} 26. Ng5 {[%emt 0:00:07]} Bxg5 {[%emt 0:00:29]} 27. fxg5 {[%emt 0:00:01]} Ng8 {[%emt 0:00:02]} 28. Rf7 {[%emt 0:00:05]} b5 {[%emt 0:00:35]} 29. Bd1 {[%emt 0:00:02]} b4 {[%emt 0:00:12]} 30. Bg4 {[%emt 0:00:06]} bxc3 {[%emt 0:00:48]} 31. bxc3 {[%emt 0:00:19]} Rcc6 {[%emt 0:00:10]} 32. Bf3 {[%emt 0:00:25]} e6 {[%emt 0:00:20]} 33. Rxa7 {[%emt 0:00:01]} Rb6 {[%emt 0:00:03]} 34. h4 {[%emt 0:00:41]} Rb1+ {[%emt 0:00:55]} 35. Kg2 {[%emt 0:00:09]} Rdb6 {[%emt 0:00:22]} 36. Re2 {[%emt 0:01:06]} R1b2 {[%emt 0:02:12]} 37. a4 {[%emt 0:00:41]} Rxe2+ {[%emt 0:01:17]} 38. Bxe2 {[%emt 0:00:02]} e5 {[%emt 0:00:46]} 39. dxe5 {[%emt 0:00:05]} Re6 {[%emt 0:00:01]} 40. a5 {[%emt 0:00:27]} Rxe5 {[%emt 0:00:33]} 41. Bf3 {[%emt 0:00:07]} h6 {[%emt 0:01:15]} 42. a6 {[%emt 0:00:04]} d4 {[%emt 0:00:01]} 43. Rc7 {[%emt 0:00:09]} dxc3 {[%emt 0:00:34]} 44. a7 {[%emt 0:00:05]} 1-0

[Event "EIRCC 2019"]
[Site "Tallinn"]
[Date "2019.12.06"]
[Round "12.18"]
[White "Babula, Vlastimil"]
[Black "Frischmann, Rick"]
[Result "1-0"]
[ECO "D07"]
[WhiteElo "2559"]
[BlackElo "2375"]
[Annotator "ChessBase"]
[PlyCount "61"]
[EventDate "2019.12.05"]
[EventType "swiss"]
[EventCountry "EST"]
[SourceTitle "playchess.com"]
[Source "ChessBase"]
[SourceQuality "1"]
[TimeControl "900+10"]

1. d4 {[%emt 0:00:00]} d5 {[%emt 0:00:00]} 2. c4 {[%emt 0:00:00]} Nc6 {[%emt 0:00:00]} 3. cxd5 {[%emt 0:00:05]} Qxd5 {[%emt 0:00:00]} 4. e3 {[%emt 0:00:05]} e5 {[%emt 0:00:00]} 5. Nc3 {[%emt 0:00:04]} Bb4 {[%emt 0:00:02]} 6. Bd2 {[%emt 0:00:04]} Bxc3 {[%emt 0:00:03]} 7. Bxc3 {[%emt 0:00:05]} exd4 {[%emt 0:00:03]} 8. Ne2 {[%emt 0:00:05]} Nf6 {[%emt 0:00:03]} 9. Nxd4 {[%emt 0:00:05]} O-O {[%emt 0:00:03]} 10. Nb5 {[%emt 0:00:10]} Qg5 {[%emt 0:00:03]} 11. h4 {[%emt 0:00:16]} Qh6 {[%emt 0:00:17]} 12. Qf3 {[%emt 0:00:15]} Bg4 {[%emt 0:02:32]} 13. Qg3 {[%emt 0:00:09]} a6 {[%emt 0:00:27]} 14. Nd4 {[%emt 0:00:50]} Nxd4 {[%emt 0:00:25]} 15. Bxd4 {[%emt 0:00:07]} Rfd8 {[%emt 0:00:10]} 16. Bc4 {[%emt 0:01:18]} Ne4 {[%emt 0:03:48]} 17. Qxg4 {[%emt 0:04:21]} Rxd4 {[%emt 0:00:03]} 18. Bxf7+ {[%emt 0:00:18]} Kxf7 {[%emt 0:02:06]} 19. O-O {[%emt 0:00:05]} Rb4 {[%emt 0:04:36]} 20. a3 {[%emt 0:00:10]} Rxb2 {[%emt 0:00:47]} 21. Qxe4 {[%emt 0:00:07]} Rf8 {[%emt 0:02:27]} 22. Rab1 {[%emt 0:02:52]} Rxb1 {[%emt 0:00:12]} 23. Rxb1 {[%emt 0:00:43]} b5 {[%emt 0:00:05]} 24. Rc1 {[%emt 0:00:39]} Kg8 {[%emt 0:00:13]} 25. Rxc7 {[%emt 0:01:07]} Qd6 {[%emt 0:00:19]} 26. Ra7 {[%emt 0:00:46]} Qd1+ {[%emt 0:00:18]} 27. Kh2 {[%emt 0:00:03]} Qd6+ {[%emt 0:00:04]} 28. f4 {[%emt 0:00:08]} Qxa3 {[%emt 0:00:14]} 29. Qe5 {[%emt 0:01:19]} Rf7 {[%emt 0:00:03]} 30. Qd5 {[%emt 0:00:03]} Qf8 {[%emt 0:00:19]} 31. Ra8 {[%emt 0:00:03]} 1-0

[Event "EIRCC 2019"]
[Site "Tallinn"]
[Date "2019.12.06"]
[Round "12.19"]
[White "Dragnev, Valentin"]
[Black "Ruck, Robert"]
[Result "0-1"]
[ECO "E15"]
[WhiteElo "2380"]
[BlackElo "2551"]
[Annotator "ChessBase"]
[PlyCount "76"]
[EventDate "2019.12.05"]
[EventType "swiss"]
[EventCountry "EST"]
[SourceTitle "playchess.com"]
[Source "ChessBase"]
[SourceQuality "1"]
[TimeControl "900+10"]

1. d4 {[%emt 0:00:00]} Nf6 {[%emt 0:00:00]} 2. c4 {[%emt 0:00:00]} e6 {[%emt 0:00:00]} 3. Nf3 {[%emt 0:00:00]} b6 {[%emt 0:00:01]} 4. g3 {[%emt 0:00:00]} Ba6 {[%emt 0:00:01]} 5. b3 {[%emt 0:00:00]} d5 {[%emt 0:00:04]} 6. Bg2 {[%emt 0:00:12]} dxc4 {[%emt 0:00:09]} 7. Ne5 {[%emt 0:00:02]} Bb4+ {[%emt 0:00:03]} 8. Kf1 {[%emt 0:00:02]} Bd6 {[%emt 0:00:03]} 9. Nxc4 {[%emt 0:00:12]} Nd5 {[%emt 0:00:10]} 10. Bf3 {[%emt 0:01:11]} f5 {[%emt 0:00:21]} 11. Kg2 {[%emt 0:00:43]} O-O {[%emt 0:00:06]} 12. Nxd6 {[%emt 0:00:06]} cxd6 {[%emt 0:00:03]} 13. Bxd5 {[%emt 0:02:09]} exd5 {[%emt 0:00:02]} 14. Ba3 {[%emt 0:00:01]} Qe7 {[%emt 0:01:07]} 15. Nc3 {[%emt 0:00:06]} Nd7 {[%emt 0:00:02]} 16. e3 {[%emt 0:00:08]} Nf6 {[%emt 0:00:11]} 17. Rc1 {[%emt 0:00:15]} Qe6 {[%emt 0:00:49]} 18. Re1 {[%emt 0:03:58]} Rf7 {[%emt 0:00:43]} 19. f3 {[%emt 0:00:36]} g5 {[%emt 0:00:22]} 20. Kg1 {[%emt 0:00:37]} Re8 {[%emt 0:01:20]} 21. Qd2 {[%emt 0:00:20]} g4 {[%emt 0:00:17]} 22. f4 {[%emt 0:02:02]} h5 {[%emt 0:00:02]} 23. Qg2 {[%emt 0:00:52]} Rh7 {[%emt 0:00:20]} 24. Nd1 {[%emt 0:00:20]} h4 {[%emt 0:06:01]} 25. gxh4 {[%emt 0:00:31]} Rxh4 {[%emt 0:01:07]} 26. Nf2 {[%emt 0:00:50]} Qd7 {[%emt 0:00:32]} 27. Rc3 {[%emt 0:00:45]} Rc8 {[%emt 0:01:51]} 28. Rxc8+ {[%emt 0:00:13]} Bxc8 {[%emt 0:00:02]} 29. Rc1 {[%emt 0:01:38]} Ba6 {[%emt 0:00:06]} 30. Rc2 {[%emt 0:00:04]} Kf7 {[%emt 0:00:49]} 31. Qg3 {[%emt 0:00:16]} Rh8 {[%emt 0:00:21]} 32. Qg2 {[%emt 0:00:22]} Ke6 {[%emt 0:01:23]} 33. Qg3 {[%emt 0:00:49]} Qb5 {[%emt 0:00:22]} 34. Rc1 {[%emt 0:00:02]} Qa5 {[%emt 0:00:10]} 35. Bb2 {[%emt 0:00:08]} Qd2 {[%emt 0:00:10]} 36. Ba3 {[%emt 0:00:14]} Qxa2 {[%emt 0:00:15]} 37. Bb4 {[%emt 0:00:47]} Qxb3 {[%emt 0:00:05]} 38. Be1 {[%emt 0:00:31]} Qb2 {[%emt 0:00:12]} 0-1

[Event "EIRCC 2019"]
[Site "Tallinn"]
[Date "2019.12.06"]
[Round "12.21"]
[White "Luukkonen, Tommi"]
[Black "Stocek, Jiri"]
[Result "0-1"]
[ECO "B90"]
[WhiteElo "2332"]
[BlackElo "2532"]
[Annotator "ChessBase"]
[PlyCount "80"]
[EventDate "2019.12.05"]
[EventType "swiss"]
[EventCountry "EST"]
[SourceTitle "playchess.com"]
[Source "ChessBase"]
[SourceQuality "1"]
[TimeControl "900+10"]

1. e4 {[%emt 0:00:00]} c5 {[%emt 0:00:00]} 2. Nf3 {[%emt 0:00:00]} d6 {[%emt 0:00:00]} 3. d4 {[%emt 0:00:00]} cxd4 {[%emt 0:00:00]} 4. Nxd4 {[%emt 0:00:00]} Nf6 {[%emt 0:00:00]} 5. Nc3 {[%emt 0:00:00]} a6 {[%emt 0:00:00]} 6. h3 {[%emt 0:00:00]} e6 {[%emt 0:00:04]} 7. g4 {[%emt 0:00:00]} h6 {[%emt 0:00:02]} 8. Bg2 {[%emt 0:00:02]} Qc7 {[%emt 0:00:49]} 9. Be3 {[%emt 0:00:07]} b5 {[%emt 0:00:12]} 10. a3 {[%emt 0:00:37]} Bb7 {[%emt 0:00:02]} 11. f4 {[%emt 0:00:40]} Nbd7 {[%emt 0:00:48]} 12. f5 {[%emt 0:00:56]} e5 {[%emt 0:00:19]} 13. Nde2 {[%emt 0:00:10]} Nb6 {[%emt 0:00:17]} 14. b3 {[%emt 0:00:22]} Rd8 {[%emt 0:00:14]} 15. Qd3 {[%emt 0:00:47]} Be7 {[%emt 0:00:38]} 16. a4 {[%emt 0:00:41]} bxa4 {[%emt 0:00:17]} 17. Nxa4 {[%emt 0:01:30]} Nxa4 {[%emt 0:00:03]} 18. Rxa4 {[%emt 0:00:01]} d5 {[%emt 0:00:28]} 19. O-O {[%emt 0:01:45]} O-O {[%emt 0:00:42]} 20. Ng3 {[%emt 0:02:04]} dxe4 {[%emt 0:01:58]} 21. Qe2 {[%emt 0:00:25]} Nd5 {[%emt 0:03:07]} 22. Rc4 {[%emt 0:00:20]} Qb8 {[%emt 0:00:40]} 23. f6 {[%emt 0:00:37]} Bxf6 {[%emt 0:00:47]} 24. Nxe4 {[%emt 0:00:01]} Be7 {[%emt 0:00:32]} 25. Bc5 {[%emt 0:02:19]} Bxc5+ {[%emt 0:01:03]} 26. Nxc5 {[%emt 0:00:02]} Nf4 {[%emt 0:00:39]} 27. Rfxf4 {[%emt 0:00:15]} Bxg2 {[%emt 0:00:03]} 28. Rf2 {[%emt 0:00:20]} Bd5 {[%emt 0:00:21]} 29. Rc3 {[%emt 0:00:07]} Qb4 {[%emt 0:00:43]} 30. Qe3 {[%emt 0:00:12]} Ba8 {[%emt 0:01:05]} 31. Rc4 {[%emt 0:00:42]} Qb6 {[%emt 0:00:16]} 32. Kh2 {[%emt 0:00:29]} Rfe8 {[%emt 0:00:23]} 33. g5 {[%emt 0:00:10]} hxg5 {[%emt 0:00:37]} 34. Qxg5 {[%emt 0:00:01]} Rd6 {[%emt 0:00:16]} 35. Qh5 {[%emt 0:00:23]} Bd5 {[%emt 0:00:30]} 36. Rc3 {[%emt 0:00:44]} Rc6 {[%emt 0:00:33]} 37. b4 {[%emt 0:01:27]} Qxb4 {[%emt 0:00:04]} 38. Ne6 {[%emt 0:00:21]} g6 {[%emt 0:00:36]} 39. Rg3 {[%emt 0:00:37]} Rexe6 {[%emt 0:00:43]} 40. Rxf7 Rxc2+ {[%emt 0:00:06]} 0-1